Cogmind - Beta 13 @@@ ROGUE MODE // 2024.03.11 @ 14:06:59 Player: Infomantis Result: Destroyed by PM-6OX(R) with Subdweller Machine Gun Performance ------------- Evolutions (0) 0 Regions Visited (2) 400 Robots Destroyed (22) 110 Value Destroyed (637) 637 Prototype IDs (10) 200 Alien Tech Used (0) 0 Bonus (-46) -46 TOTAL SCORE: 1301 Bonus ------- Friendly Fire -46 Cogmind --------- Core Integrity 0/250 Matter 278/300 Energy 78/100 System Corruption 0% Temperature Cool (0) Movement Rolling (95) Ox1 Location -10/Subcaves Parts ------- > --- POWER (1) -------- (None) > --- PROPULSION (2) --- Wheel > --- UTILITY (2) ------ Small Storage Unit Seismic Detector > --- WEAPON (2) ------- Subdweller Beam Cannon Subdweller Machine Gun > --- INVENTORY (8) ---- Ion Engine Seismic Detector Gun Armor Barrage Gun Grenade Launcher Flamer Makeshift Axe Peak State ------------ > --- POWER ------------ Light Nuclear Core > --- PROPULSION ------- Light Treads Spiked Treads > --- UTILITY ---------- Small Storage Unit Seismic Detector > --- WEAPON ----------- Heavy Riot Gun Subdweller Beam Cannon > --- INVENTORY -------- Ion Engine Wheel Seismic Detector Gun Armor Barrage Gun Grenade Launcher Flamer Makeshift Axe [Rating: 16] Favorites ----------- Power Ion Engine Engine Ion Engine Power Core Light Nuclear Core Propulsion Light Treads Treads Light Treads Wheel Wheel Utility Small Storage Unit Device Seismic Detector Storage Small Storage Unit Weapon Subdweller Beam Cannon Energy Gun Heavy Riot Gun Energy Cannon Subdweller Beam Cannon Ballistic Gun Light Assault Rifle Ballistic Cannon Battle Cannon Slashing Weapon Mining Claw Build | -11 -10 -10 ------- Run | Yrd Mat Sub Slots Evolved . | . . . Power . | . . . Propulsion . | . . . Utility . | . . . Weapon . | . . . Parts Attached 22 | 6 1 15 Power 2 | 1 . 1 Engine 1 | 1 . . Core 1 | . . 1 Reactor . | . . . Propulsion 6 | 2 . 4 Treads 5 | 2 . 3 Leg . | . . . Wheel 1 | . . 1 Hover . | . . . Flight . | . . . Utility 2 | 1 . 1 Device 1 | . . 1 Storage 1 | 1 . . Processor . | . . . Hackware . | . . . Protection . | . . . Artifact . | . . . Weapon 12 | 2 1 9 Energy Gun 1 | . . 1 Energy Cannon 4 | . . 4 Ballistic Gun 4 | 2 . 2 Ballistic Cannon 1 | . . 1 Launcher . | . . . Special Weapon . | . . . Impact Weapon . | . . . Slashing Weapon 2 | . 1 1 Piercing Weapon . | . . . Special Melee Weapon . | . . . Unidentified Prototypes . | . . . Parts Lost 5 | . . 5 Power 1 | . . 1 Propulsion 2 | . . 2 Utility . | . . . Weapon 2 | . . 2 Highest Loss Streak 2 | . . 2 To Critical Strikes . | . . . Average Slot Usage (%) 97 | . 85 97 Engine 8 | . 14 7 Core 5 | . . 5 Treads 27 | . 28 27 Device 12 | . . 12 Storage 14 | . 14 14 Energy Gun 8 | . . 8 Energy Cannon 11 | . . 12 Ballistic Gun 3 | . 22 2 Ballistic Cannon 2 | . . 2 Slashing Weapon 1 | . 5 1 Naked Turns . | . . . Heaviest Build 27 | 12 13 27 Greatest Support 40 | 40 40 40 Greatest Overweight (x) 2 | . . 2 Average Overweight (x) . | . . . Largest Inventory Capacity 8 | 8 8 8 Average Capacity 7 | 6 8 8 Most Carried 8 | 7 8 8 Average Carried 7 | 2 7 7 Final Capacity 8 | 8 8 8 Final Carried 8 | 7 8 7 Class Distribution -------------------- 92% | Mutant 7% | Scavenger-Mutant Dominant Class ---------------- Mutant | -10/Materials Mutant | -10/Subcaves Resources | -11 -10 -10 ----------- Run | Yrd Mat Sub Matter Collected 478 | 202 . 276 Remotely . | . . . Salvage Created 819 | 77 . 742 Parts 53 | 7 . 46 Haulers Intercepted . | . . . Recyclers Shooed 1 | 1 . . Parts Field Recycled . | . . . Retrieved Matter . | . . . Parts Self-Destructed 7 | . . 7 Prevented 3 | . . 3 Kills | -11 -10 -10 ------- Run | Yrd Mat Sub Combat Hostiles Destroyed 19 | . . 19 Guns 4 | . . 4 Cannons 14 | . . 14 Classes Destroyed 6 | 1 . 5 Tunneler 3 | 3 . . Swarmer 5 | . . 5 Grunt 2 | . . 2 Sentry 1 | . . 1 Artisan 1 | . . 1 Subdweller 11 | . . 11 Best Kill Streak 4 | 3 . 4 Combat Bots Only 4 | . . 4 Max Kills in Single Turn 1 | 1 . 1 Gunslinging . | . . . Exploded . | . . . Melee . | . . . Uniques/NPCs Destroyed . | . . . Combat | -11 -10 -10 -------- Run | Yrd Mat Sub Hostile Shots Fired 109 | . . 109 Missed 22 | . . 22 Damage Taken 1366 | . . 1366 Core 264 | . . 264 Absorbed by Shields . | . . . Core Remaining (%) 100 | 100 . . Volleys Fired 65 | 9 . 56 Largest 2 | 2 . 2 Hottest 140 | 40 . 140 Shots Fired 110 | 18 . 92 Gun 49 | 18 . 31 Cannon 61 | . . 61 Launcher . | . . . Special . | . . . Kinetic 37 | 18 . 19 Thermal 48 | . . 48 Explosive . | . . . Electromagnetic 25 | . . 25 Robot Hit Streak 18 | 13 . 18 Robot Miss Streak 3 | 1 . 3 Penetration Max . | . . . Secondary Targets . | . . . Shots Hit Robots 80 | 16 . 64 Core Hits 30 | 6 . 24 Critical Kills 1 | . . 1 Critical Parts Destroyed 1 | 1 . . Critical Strikes 3 | 1 . 2 Meltdown 1 | . . 1 Destroy 1 | 1 . . Blast 1 | . . 1 Melee Attacks 22 | . 5 17 Impact . | . . . Slashing 22 | . 5 17 Piercing . | . . . Sneak Attacks . | . . . Combat Hostiles . | . . . Follow-up Attacks . | . . . Damage Inflicted 1690 | 122 . 1568 Guns 509 | 122 . 387 Cannons 892 | . . 892 Explosions . | . . . Melee 289 | . . 289 Ramming . | . . . Kinetic 341 | 122 . 219 Thermal 741 | . . 741 Explosive . | . . . Electromagnetic 319 | . . 319 Impact . | . . . Slashing 289 | . . 289 Piercing . | . . . Highest Corruption . | . . . Average Corruption . | . . . Corruption Purged . | . . . Corruption Blocked . | . . . Overload Shots . | . . . Overflow Damage 9 | . . 9 Projectiles 5 | . . 5 Explosions . | . . . Melee 4 | . . 4 Knockbacks 2 | . . 2 Impact . | . . . Kinetic 2 | . . 2 Secondary . | . . . Self-Inflicted Damage . | . . . Shots . | . . . Rammed . | . . . Targets Rammed . | . . . Kicked . | . . . Crushed . | . . . Highest Temperature 78 | . . 78 Average Temperature 25 | . . 25 Received Heat Transfer 174 | . . 174 Siege Activations . | . . . Robots Corrupted . | . . . Combat Hostiles . | . . . Parts Fried 1 | . . 1 Impact Corruptions . | . . . Robots Melted 1 | . . 1 Combat Hostiles 1 | . . 1 Parts Melted 1 | . . 1 Heat Transferred 999 | . . 999 Parts Sabotaged . | . . . Parts Stolen . | . . . Parts Stripped . | . . . Power Chain Reactions . | . . . Alert | -11 -10 -10 ------- Run | Yrd Mat Sub Peak Influence 15 | 15 15 . Initial 9 | . 9 . Average 7 | 5 12 . Maximum Alert Level . | . . . Low Security (%) 100 | 100 100 . Level 1 . | . . . Level 2 . | . . . Level 3 . | . . . Level 4 . | . . . Level 5 . | . . . High Security . | . . . Max Security . | . . . Squads Dispatched . | . . . Investigation . | . . . Extermination . | . . . Reinforcement . | . . . Assault . | . . . Garrison . | . . . Intercept . | . . . Searches Triggered . | . . . Construction Impeded . | . . . Haulers Reinforced . | . . . Active Scanning Responses . | . . . Cargo Convoy Interrupts . | . . . Stealth | -11 -10 -10 --------- Run | Yrd Mat Sub Distress Signals . | . . . Communications Jammed . | . . . Distress Signals . | . . . Times Spotted 23 | . . 23 Peak Tracking Total 6 | . . 6 Tactical Retreats 2 | . . 2 Traps | -11 -10 -10 ------- Run | Yrd Mat Sub Traps Triggered 1 | . . 1 Indirectly . | . . . Trap Hack Attempts . | . . . Triggered . | . . . Disarmed . | . . . Reprogrammed . | . . . Reused . | . . . Traps Extracted . | . . . Installed . | . . . Triggered . | . . . Machines | -11 -10 -10 ---------- Run | Yrd Mat Sub Machines Disabled 2 | . . 2 Max in Single Turn 1 | . . 1 Machines Repaired . | . . . Machines Dismantled . | . . . Machines Sabotaged . | . . . Overloaded Fab Kills . | . . . Hacking | -11 -10 -10 --------- Run | Yrd Mat Sub Machines Accessed 3 | . 1 2 Terminals 1 | . 1 . Fabricators . | . . . Repair Stations . | . . . Recycling Units . | . . . Scanalyzers . | . . . Garrison Access . | . . . Total Hacks 6 | . 2 4 Successful 5 | . 1 4 Failed 1 | . 1 . Catastrophic 1 | . 1 . Database Lockouts . | . . . Manual 2 | . 2 . Terminals 2 | . 2 . Fabricators . | . . . Repair Stations . | . . . Recycling Units . | . . . Scanalyzers . | . . . Garrison Access . | . . . Terminal Hacks 5 | . 1 4 Record 3 | . . 3 Zone Layout 1 | . 1 . Derelict Proto ID Bank 1 | . . 1 Fabricator Hacks . | . . . Repair Station Hacks . | . . . Recycling Unit Hacks . | . . . Scanalyzer . | . . . Garrison Access Hacks . | . . . Unauthorized Hacks . | . . . Terminals . | . . . Fabricators . | . . . Repair Stations . | . . . Recycling Units . | . . . Scanalyzers . | . . . Garrison Access . | . . . Data Cores Recovered . | . . . Used . | . . . Hacking Detections 1 | . 1 . Full Trace Events 1 | . 1 . Feedback Events . | . . . Feedback Blocked . | . . . Robot Schematics Acquired . | . . . Robots Built . | . . . Authchips . | . . . Time . | . . . Total Robot Build Rating . | . . . Part Schematics Acquired . | . . . Parts Built . | . . . Authchips . | . . . Time . | . . . Total Part Build Rating . | . . . Parts Repaired . | . . . Time . | . . . Parts Recycled . | . . . Recycled Matter . | . . . Retrieved Matter . | . . . Retrieved Components . | . . . Parts Scanalyzed . | . . . Part Schematics Acquired . | . . . Parts Damaged . | . . . Bothacking | -11 -10 -10 ------------ Run | Yrd Mat Sub Used RIF Installer . | . . . Robots Hacked . | . . . Non-combat . | . . . Combat . | . . . Robot Hacks Applied . | . . . Relay Couplers Released . | . . . Fabnet Peak Effective % . | . . . Robots Rewired . | . . . Allies Hacked . | . . . Hacks Repelled . | . . . Allies | -11 -10 -10 -------- Run | Yrd Mat Sub Total Allies . | . . . Largest Group . | . . . Highest-Rated Group . | . . . Highest-Rated Ally . | . . . Total Orders . | . . . Ally Attacks . | . . . Total Damage . | . . . Kills . | . . . Allies Corrupted . | . . . Allies Melted . | . . . Intel | -11 -10 -10 ------- Run | Yrd Mat Sub Robot Analysis Total . | . . . Derelict Logs Recovered 2 | . . 2 Drone Launches . | . . . Drone Recoveries . | . . . Exploration | -11 -10 -10 ------------- Run | Yrd Mat Sub Turns Passed 2888 | 141 81 2666 Spaces Moved 1578 | 67 34 1477 Core 4 | 4 . . Treads 1500 | 63 34 1403 Legs . | . . . Wheels 74 | . . 74 Hover . | . . . Flight . | . . . Fastest Speed 50 | 50 160 95 Average Speed 158 | 153 160 158 Slowest Speed 260 | 160 160 260 Overloaded Moves . | . . . Propulsion Burnouts . | . . . Robots Hopped . | . . . Cave-ins Triggered . | . . . Exploration Rate (%) 34 | 4 8 90 Regions Visited 2 Branch Regions 1 Pre-discovered Areas 2 | . . 2 Known Exits Taken . | . . . Unknown Exits Taken 2 | 1 1 . Scrap Searched 7 | . . 7 Spaces Dug 1 | . . 1 Terrain Destroyed 4 | . . 4 Melee . | . . . Projectile 4 | . . 4 AOE . | . . . Terrain Rammed . | . . . Walls Destroyed . | . . . Machines Disabled . | . . . Actions | -11 -10 -10 --------- Run | Yrd Mat Sub Total 1837 | 88 51 1698 Wait 121 | . 9 112 Move 1576 | 66 33 1477 Hop . | . . . Pick Up 16 | 7 2 7 Fast Attach 12 | 6 . 6 Attach 2 | . . 2 Detach 1 | . . 1 Swap 8 | . 1 7 Drop 14 | . 1 13 Fire 65 | 9 . 56 Melee 22 | . 5 17 Ram . | . . . Kick . | . . . Crush . | . . . Escape Stasis . | . . . Rewire . | . . . Trap . | . . . Miscellaneous . | . . . Route ------- -11/Scrapyard -10/Materials -10/Subcaves (discovered 2 exits: [*Mat x2]) History --------- Turn | Location | Event 10 | -11/Scrapyard | Discovered new exit (range 15) 142 | -11/Scrapyard | Entered Materials 218 | -10/Materials | Discovered new exit (range 3) 223 | -10/Materials | Entered Subcaves 314 | -10/Subcaves | Build established: Mutant 477 | -10/Subcaves | Learned location of Zion (-7) 477 | -10/Subcaves | Met a Zionite searching for "candidates" 481 | -10/Subcaves | Discovered new exit (range 14) 1470 | -10/Subcaves | Learned 8 Materials zone layouts 1550 | -10/Subcaves | Visited Clippyterm 1554 | -10/Subcaves | Learned location of Section 7 (-2) 1620 | -10/Subcaves | Discovered new exit (range 16) 1691 | -10/Subcaves | Disturbed a concealed Subdweller 1867 | -10/Subcaves | Visited 4L-MR0's lab 1883 | -10/Subcaves | Found Gun Armor 2283 | -10/Subcaves | Learned Materials non-interactive machine intel 2500 | -10/Subcaves | Shifting Twisted Machinery released Piercing Trap 2501 | -10/Subcaves | Shifting Twisted Machinery released Spk. Treads 2858 | -10/Subcaves | Core integrity fell below 50% 2879 | -10/Subcaves | Core integrity fell below 20% 2889 | -10/Subcaves | Destroyed by PM-6OX(R) with Subdweller Machine Gun Last Messages --------------- 02516_ Dropped Lgt. Treads. 02532_ Acquired 5 matter. 02587_ Z4-LI1(R) destroyed. 02590_ Acquired 5 matter. 02620_ AD-T03(R) affixes Scrap Shield Fragment to Scrap Shield. 02621_ Hvy. Riot Gun destroyed. 02621_ AD-T03(R) destroyed. 02623_ GD-L81(R) destroyed. 02628_ Acquired Sub. Beam Cannon. 02630_ Acquired 10 matter. 02633_ Dropped Sub. Beam Cannon. 02634_ Acquired Sub. Machine Gun. 02635_ Acquired 10 matter. 02728_ Lgt. Treads destroyed. 02729_ DF-9RZ(R) destroyed. 02758_ Acquired 5 matter. 02849_ Lgt. Nuclear Core destroyed. 02867_ Destroyed Sub. Laser. 02876_ Spk. Treads destroyed. Map ----- +----------------------------------------------------+ | ?????????????????????????????????????????????????? | | ?????????????????????????????????????????????????? | | ?????????????????????????????????????????????????? | | ?????????????????????????????????????????????????? | | ?????????????????????????????????????????????????? | | ?????????????????????????????????????????????????? | | ?????????????????????????????????????????????????? | | ?????????????????????????????????????????????????? | | ?????????????????????????????????????????????????? | | ?????????????????????????????????????????????????? | | ?????????????????????????????????????????????????? | | ?????????????????????????????????????????????????? | | ?????????????????????????????????????????????????? | | ?????????????????????????????????????????????????? | | ???????????????????????????????#??????####???????? | | ???????????????????????????? ## ##### #??????? | | ???????????????????????????? #?????? | | ???????????????????????????? """ ####### | | ????????????????????????????# " " ?# ## | | ?????????????????????????#### """ #??# # | | ????????????????""?????###" #??## | | ????????????????"""#?###"""" #???# | | ??????????????? "" #" "" "" #???## ### | | ???????????????? " """" #???## ##?? | | ???????????????????? """ #???# #??? | | ???????????????????????# @ R #???# ##??? | | ???????????????????????#" """"""""#???# ##???? | | ???????????????????????#"" "" #???# ##????? | | ???????????????????????#"" """" #???# ##?????? | | ???????????????????????## """ "" #???####???#### | | ??????????????????????### " ############ | | ??????????????????????# ## ## | | ######????????????????## ### | | # # ###???????????????# ## ### | | [ # #??????????###### ## ## #?### | | ##????????### ## ## #### #???? | | #[#?????????# ### ### ##???? | | ###?????????# #?## ## ###??? | | #???????????## # #??###### ##?? | | ##????????????### ## ##???????## #?? | | ##?????????????## ### ##????????## ## #?? | | ##??????????????# ### #?????????# ### ### | | ##???????????????# ### #?????????## ###### # | | #????????????????# ##?????????## # # | | #????????????????# ##??????????# % | | ?????????????????## ##???????????## # | | ??????????????????## ####????????????# # ## | | ???????????????????####???????????????# ## ### | | ??????????????????????????????????????# ## #?## | | ????????????????????????????????????#### #??# | +----------------------------------------------------+ Best States ------------- Heat Dissipation 25 Energy Generation 14 Energy Capacity 250 Matter Stores 300 Matter Capacity 300 Sight Range 16 Terrain Scan Density 10 Evasion (%) 40 Recoil Reduction 2 Item Schematics ----------------- None Robot Schematics ------------------ None Fabricated ------------ Nothing Alien Tech Used ----------------- None Achievements -------------- None Challenges ------------ None Game ------ Seed ExoskeletonChainChip Manual? 0 Play Time 00:20:23 Cumulative 373.2 hours Start 2024.03.11 @ 13:39:33 End 2024.03.11 @ 14:06:59 Sessions 1 Manual Loads 0 Difficulty Rogue Special Mode None Game No. 244 Rogue 221 Adventurer 6 Explorer 17 Win Type - Total 29 Types 21/0/4/1/0/1/1/1/0 Lore% 91 Gallery% 94 Achievement% 79 Wizard Run 0 Options --------- Layout 1 ASCII 0 Keyboard 0 Movement Numpad Keybinds 0 Fullscreen 1 Font 16/TamsynBold Map View 55x38 Zoom Use 0% Tactical HUD 1 Map Filters NONE Filters NONE Steam 1 RUN: 739a294a-7844-4aeb-bfe5-249bcdec812c